[Event "2nd Serbia Open Masters 2022"]
[Site "Novi Sad"]
[Date "2022.06.29"]
[Round "2.39"]
[White "Gavrilov, Maxim"]
[Black "Urazayev, Arystanbek"]
[Result "0-1"]
[ECO "E43"]
[WhiteElo "2120"]
[BlackElo "2445"]
[Annotator "TA"]
[PlyCount "108"]
[EventDate "2022.06.28"]
[EventType "swiss"]
[EventCountry "SRB"]
[SourceTitle "playchess.com"]
[Source "ChessBase"]
[SourceQuality "1"]
[TimeControl "40/5400+30:900+30"]

{[%evp 19,108,0,6,0,0,-12,0,0,0,-12,0,-11,-16,-17,0,-21,-8,-26,-4,-20,-24,-24,-42,-22,0,0,3,-106,-110,-108,-104,-107,-89,-117,-115,-123,-128,-146,-143,-156,-116,-147,-141,-158,-143,-155,-164,-161,-178,-173,-191,-258,-260,-277,-242,-264,-188,-204,-197,-381,-368,-427,-414,-399,-385,-344,-263,-254,-256,-556,-558,-541,-523,-783,-763,-794,-739,-791,-791,-789,-747,-2480,-2480,-2323,-2372,-2462,-2456,-2408,-1678,-1257,-1197]} 1. d4 {[%emt 0:03:48]} Nf6 {[%emt 0:00:46]} 2. c4 {[%emt 0:00:07]} e6 {[%emt 0:00:47]} 3. Nc3 {[%emt 0:00:08]} Bb4 {[%emt 0:00:07]} 4. Nf3 {[%emt 0:00:05]} b6 {[%emt 0:00:42]} 5. e3 {[%emt 0:00:06]} O-O {[%emt 0:00:20]} 6. Bd3 {[%emt 0:00:09]} Bb7 {[%emt 0:00:10]} 7. O-O {[%emt 0:00:12]} c5 {[%emt 0:00:19]} 8. Bd2 {[%emt 0:01:26]} cxd4 {[%emt 0:01:30]} 9. exd4 {[%emt 0:04:30]} d5 {[%emt 0:00:24]} 10. cxd5 {[%emt 0:00:31]} Nxd5 {[%emt 0:00:40]} 11. Re1 {[%emt 0:02:31] E43: Nimzo-Indian: Rubinstein: 4...b6.} Nd7 {[%emt 0:05:04]} 12. Rc1 {[%emt 0:02:48]} Nxc3 {[%emt 0:02:02]} 13. bxc3 {[%emt 0:01:18] The position is equal.} Bd6 {[%emt 0:01:34]} 14. Qe2 {[%emt 0:05:17]} Rc8 {[%emt 0:06:27] [#]} 15. a4 $146 {[%emt 0:09:21]} ({Predecessor:} 15. h3 Re8 16. c4 e5 17. Bf5 g6 18. Bxd7 Bxf3 19. Qxf3 Qxd7 20. d5 f5 21. Qb3 e4 22. g3 Rc5 23. Kg2 Rf8 24. Bb4 Rc7 25. Bxd6 Qxd6 {½-½ (25) Semjonov,A (1983)-Ruus,R (1770) ICCF email 2018}) 15... Qc7 {[%emt 0:04:25]} 16. h3 {[%emt 0:03:19]} Bf4 {[%emt 0:07:51]} 17. Red1 {[%emt 0:16:56]} Rfd8 {[%emt 0:09:02]} 18. c4 {[%emt 0:07:12]} Bxd2 {[%emt 0:08:15]} 19. Nxd2 {[%emt 0:03:52]} Nf6 {[%emt 0:01:12]} 20. Ne4 {[%emt 0:01:49]} Bxe4 {[%emt 0:01:29]} 21. Bxe4 {[%emt 0:00:15]} Qf4 {[%emt 0:00:19]} 22. Bb7 {[%emt 0:16:21]} Rb8 {[%emt 0:00:19]} 23. Qe5 {[%emt 0:03:55]} (23. g3 $11 {keeps the balance.} Qh6 24. Bg2) 23... Qxe5 $17 {[%emt 0:02:44] Black continues to play with concentration.} 24. dxe5 {[%emt 0:00:15]} Nd7 $36 {[%emt 0:00:20][%mdl 2048] Black is on the roll.} 25. Ba6 {[%emt 0:00:15][%cal Oa4a5]} g5 {[%emt 0:13:17]} ({Reject} 25... Nxe5 $6 26. Rxd8+ Rxd8 27. c5 bxc5 28. Rxc5 $11) 26. Bb5 {[%emt 0:13:57]} Nxe5 {[%emt 0:08:47]} 27. a5 {[%emt 0:01:47]} Nd3 {[%emt 0:03:52]} 28. Ra1 {[%emt 0:00:43]} Nc5 {[%emt 0:00:31] Black is more active.} 29. axb6 {[%emt 0:01:00]} axb6 {[%emt 0:08:05]} 30. Kf1 {[%emt 0:00:22]} Kg7 {[%emt 0:00:07]} 31. Ke2 {[%emt 0:00:14]} Kf6 {[%emt 0:00:17]} 32. Rxd8 {[%emt 0:00:17]} Rxd8 {[%emt 0:00:02][%mdl 4096] Endgame KRB-KRN} 33. Ra7 {[%emt 0:00:12]} h5 {[%emt 0:01:11][%cal Bh7h5,Bh5h4][%mdl 32]} 34. Rc7 {[%emt 0:01:14]} h4 {[%emt 0:01:27]} 35. Rc6 {[%emt 0:00:31]} (35. Bc6 {keeps fighting.}) 35... Rb8 $19 {[%emt 0:00:02]} 36. Rc7 {[%emt 0:00:17]} Rb7 {[%emt 0:00:47]} 37. Rc8 {[%emt 0:00:17]} Ke5 {[%emt 0:00:41] And now ...Ra7 would win.} 38. Rg8 {[%emt 0:01:22]} f6 {[%emt 0:01:31] Hoping for ...Ra7.} 39. Ke3 $2 {[%emt 0:00:39] [#]} (39. Ra8) 39... Ra7 {[%emt 0:05:30]} 40. Rb8 {[%emt 0:00:00]} Ra3+ {[%emt 0:00:00]} 41. Ke2 {[%emt 0:01:20]} Nd3 {[%emt 0:07:06] aiming for ...Nf4+.} 42. g3 {[%emt 0:09:31]} Nc5 {[%emt 0:00:12]} 43. gxh4 {[%emt 0:00:41]} gxh4 {[%emt 0:01:04]} 44. f3 $2 {[%emt 0:00:20] [#]} (44. Rxb6 Rxh3 45. Rb8) 44... Nb3 {[%emt 0:00:04] Black is clearly winning.} 45. Rxb6 {[%emt 0:00:56]} Nd4+ {[%emt 0:00:06]} 46. Kf2 {[%emt 0:01:58]} Rxf3+ {[%emt 0:00:17]} 47. Kg2 {[%emt 0:00:05]} Rg3+ {[%emt 0:00:12]} 48. Kf2 {[%emt 0:00:06]} Rxh3 {[%emt 0:00:23]} 49. c5 {[%emt 0:00:10]} Rc3 {[%emt 0:01:05]} 50. c6 {[%emt 0:00:08]} Nxb5 {[%emt 0:01:09]} 51. Rxb5+ {[%emt 0:00:03]} Kd6 {[%emt 0:00:03]} 52. Rh5 {[%emt 0:00:12]} Rc4 {[%emt 0:01:21]} 53. Rh6 {[%emt 0:00:08]} Rf4+ {[%emt 0:00:26]} 54. Ke3 {[%emt 0:00:04]} e5 {[%emt 0:00:04] Weighted Error Value: White=0.47/Black=0.08 (flawless)} 0-1

[Event "2nd Serbia Open Masters 2022"]
[Site "Novi Sad"]
[Date "2022.06.29"]
[Round "2.40"]
[White "Samant Aditya S"]
[Black "Mullick, Raahil"]
[Result "1-0"]
[ECO "B92"]
[WhiteElo "2433"]
[BlackElo "2237"]
[Annotator "TA"]
[PlyCount "69"]
[EventDate "2022.06.28"]
[EventType "swiss"]
[EventCountry "SRB"]
[SourceTitle "playchess.com"]
[Source "ChessBase"]
[SourceQuality "1"]
[TimeControl "40/5400+30:900+30"]

{[%evp 18,69,58,50,45,35,27,13,73,87,73,66,79,70,76,84,145,89,96,82,83,83,59,63,107,108,118,113,109,105,139,130,129,115,116,108,175,177,159,140,185,193,416,413,423,420,400,398,337,314,660,656,29995,29996]} 1. e4 {[%emt 0:00:03]} c5 {[%emt 0:00:20]} 2. Nf3 {[%emt 0:00:11]} d6 {[%emt 0:00:09]} 3. d4 {[%emt 0:00:04]} cxd4 {[%emt 0:00:04]} 4. Nxd4 {[%emt 0:00:04]} Nf6 {[%emt 0:00:06]} 5. Nc3 {[%emt 0:00:04]} a6 {[%emt 0:00:03]} 6. Be2 {[%emt 0:00:35]} e5 {[%emt 0:00:16]} 7. Nb3 {[%emt 0:00:17]} Be7 {[%emt 0:01:08]} 8. Be3 {[%emt 0:00:19]} O-O {[%emt 0:01:14]} 9. g4 {[%emt 0:02:05][%cal Bg2g4,Bg4g5][%mdl 32]} Be6 {[%emt 0:07:17]} 10. g5 {[%emt 0:01:06]} Ne8 {[%emt 0:02:56] B92: Sicilian Najdorf: 6 Be2.} 11. h4 {[%emt 0:11:55]} Nc7 {[%emt 0:05:55] [#]} 12. f4 $146 {[%emt 0:32:03] Strongly threatening f5.} ({Predecessor:} 12. Bf3 Nd7 13. Qd2 a5 14. a4 Bc4 15. Be2 Be6 16. h5 Nc5 17. Nxc5 dxc5 18. O-O-O Qxd2+ 19. Rxd2 {1-0 (49) Aravindh,C (2641)-Bodnaruk,A (2443) Chess.com INT 2021}) 12... exf4 {[%emt 0:05:21]} (12... d5 $11 {keeps the balance.}) 13. Bxf4 $16 {[%emt 0:00:08]} d5 {[%emt 0:12:55]} 14. Qd2 {[%emt 0:01:00] Threatens to win with 0-0-0.} dxe4 {[%emt 0:02:00]} 15. Qxd8 {[%emt 0:00:33]} (15. Nxe4 $6 Qxd2+ 16. Bxd2 (16. Nbxd2 Nd5 $15) (16. Kxd2 Nd5 $15) 16... Nc6 $11) 15... Bxd8 {[%emt 0:00:15][%cal Be7d8,Bd8c7,Bc7f4][%mdl 32]} 16. O-O-O {[%emt 0:03:30][%cal Od1d8] And now Rxd8! would win.} (16. Nxe4 Nd5 17. Bd6 Re8 $11) 16... Nd7 {[%emt 0:12:46]} ({Black should play} 16... Bxb3 17. axb3 (17. cxb3 Ne6 $14) 17... Ne6) 17. Nd4 {[%emt 0:10:35] 0x0.0022fc73a0a0dp-1022s more active pieces. The black rooks are badly placed.} ({Don't play} 17. Nxe4 $6 Nd5 18. Bc4 Nxf4 $11) ({White should try} 17. Bg3) 17... Nb6 {[%emt 0:02:34]} 18. Bxc7 {[%emt 0:01:40][%mdl 64] Remove Defender} (18. Nxe4 {with more complications.} Bd5 19. Bf3 Ne6 20. Bd6) 18... Bxc7 {[%emt 0:00:12]} 19. Nxe6 {[%emt 0:00:02]} fxe6 {[%emt 0:00:08]} 20. Nxe4 {[%emt 0:00:12]} Bf4+ {[%emt 0:05:12]} 21. Kb1 {[%emt 0:00:18]} Rac8 {[%emt 0:00:15] Inhibits Nc5.} 22. Nd6 $1 {[%emt 0:12:31]} Rc7 {[%emt 0:04:51]} 23. Bg4 {[%emt 0:00:10]} Re7 {[%emt 0:02:53] [#]} 24. Rhe1 $1 {[%emt 0:00:51]} e5 {[%emt 0:05:48]} 25. Ne4 {[%emt 0:00:46] Prevents Bg3.} Nc4 {[%emt 0:01:23]} 26. Bh3 {[%emt 0:01:11]} Rc7 {[%emt 0:13:30]} (26... Ne3 $16) 27. Be6+ $18 {[%emt 0:07:04]} Kh8 {[%emt 0:00:05]} 28. Rd3 {[%emt 0:03:05] Inhibits Ne3.} Ne3 {[%emt 0:07:00] Inhibits Red1.} 29. c3 {[%emt 0:00:41]} Ng2 $2 {[%emt 0:00:35]} (29... Re7) 30. Red1 {[%emt 0:00:17] White wants to mate with Rd8.} Re7 {[%emt 0:01:56]} 31. Rd8 {[%emt 0:00:50][%cal Rd8f8]} Ree8 {[%emt 0:00:10]} 32. Rxe8 {[%emt 0:00:24]} Rxe8 {[%emt 0:00:05]} 33. h5 {[%emt 0:01:28][%cal Od1d7,Bh4h5,Bh5h6][%mdl 32] Black must now prevent Rd7!} g6 $2 {[%emt 0:04:49] [#]} (33... h6 34. g6 Bg5) 34. Nf6 $1 {[%emt 0:02:41][%cal Od1d7] Threatening mate with Rd7!} Rxe6 {[%emt 0:01:59]} (34... Bxg5 35. Nxe8) 35. h6 {[%emt 0:00:17] Weighted Error Value: White=0.04 (flawless) /Black=0.61} ({Inferior is} 35. Rd7 {[#]} Rxf6 $1 36. gxf6 Kg8 $11) 1-0

[Event "2nd Serbia Open Masters 2022"]
[Site "Novi Sad"]
[Date "2022.06.29"]
[Round "2.41"]
[White "Srija, Seshadri"]
[Black "Babazada, Khazar"]
[Result "0-1"]
[ECO "C76"]
[WhiteElo "2241"]
[BlackElo "2431"]
[Annotator "TA"]
[PlyCount "118"]
[EventDate "2022.06.28"]
[EventType "swiss"]
[EventCountry "SRB"]
[SourceTitle "playchess.com"]
[Source "ChessBase"]
[SourceQuality "1"]
[TimeControl "40/5400+30:900+30"]

{[%evp 17,118,42,50,20,46,39,41,36,42,26,59,67,69,56,75,19,35,37,52,33,51,36,46,22,28,28,21,0,0,0,0,0,0,-100,-10,-16,0,0,0,-176,-148,-153,-158,-218,-177,-210,-212,-219,-219,-219,-214,-222,-222,-332,-282,-397,-389,-411,-370,-356,-292,-297,-290,-297,-280,-308,-303,-327,-322,-316,-320,-308,-262,-294,-278,-310,-313,-483,-470,-411,-264,-284,-261,-249,-244,-275,-258,-302,-280,-302,-285,-299,-283,-285,-275,-257,-271,-640,-420,-414,-430,-402,-408]} 1. e4 {[%emt 0:00:04]} e5 {[%emt 0:05:11]} 2. Nf3 {[%emt 0:00:11]} Nc6 {[%emt 0:00:10]} 3. Bb5 {[%emt 0:00:17]} a6 {[%emt 0:00:06]} 4. Ba4 {[%emt 0:00:05]} d6 {[%emt 0:00:04]} 5. O-O {[%emt 0:01:53]} Bd7 {[%emt 0:00:15]} 6. c3 {[%emt 0:00:18]} g6 {[%emt 0:00:32]} 7. d4 {[%emt 0:00:24]} Bg7 {[%emt 0:00:07]} 8. Re1 {[%emt 0:00:31]} Nge7 {[%emt 0:00:26] 8...Nf6 is the fancy move.} 9. Be3 {[%emt 0:02:18][%cal Bc1e3,Be3c5,Bc5a3][%mdl 32]} O-O {[%emt 0:01:23]} 10. dxe5 {[%emt 0:03:44] C76: Ruy Lopez: Deferred Steinitz: 5 c3 Bd7 6 d4 g6.} dxe5 {[%emt 0:00:07]} 11. Bc5 {[%emt 0:01:58]} Qe8 {[%emt 0:03:08]} 12. Nbd2 {[%emt 0:02:43] White is slightly better.} b6 {[%emt 0:03:32]} 13. Ba3 {[%emt 0:01:57]} Na7 {[%emt 0:16:30]} 14. Bxd7 {[%emt 0:09:18]} Qxd7 {[%emt 0:00:29]} 15. Nc4 {[%emt 0:01:28][%csl LRd7,LRe5]} Qe6 {[%emt 0:00:18] [#]} 16. Ne3 $146 {[%emt 0:03:05]} (16. Qb3 $16) ({Predecessor:} 16. b3 Nb5 17. Bb2 h6 18. Qe2 g5 19. Ne3 Nd6 20. Nd2 f5 21. exf5 Ndxf5 22. Nxf5 Qxf5 {1-0 (55) Hay,T-Hamilton,D Melbourne 1972}) 16... Nb5 {[%emt 0:05:40]} 17. Bxe7 {[%emt 0:02:18]} (17. Ng5 {looks sharper.} Qf6 18. Bxe7 Qxe7 19. h4) 17... Qxe7 {[%emt 0:00:02]} 18. Nd5 {[%emt 0:00:22][%cal Be3d5,Bd5b4,Bb4c6,Bc6e5][%mdl 32]} Qd8 {[%emt 0:00:03]} 19. a4 {[%emt 0:02:30]} Nd6 {[%emt 0:01:10]} 20. a5 {[%emt 0:05:31]} b5 {[%emt 0:04:27]} 21. Nb4 {[%emt 0:16:55]} c5 {[%emt 0:06:15]} 22. Nc6 {[%emt 0:06:58]} (22. Nd5 $5 {[%cal Rd5b6]}) 22... Qc7 {[%emt 0:01:23]} 23. Qd5 {[%emt 0:08:24]} Rac8 {[%emt 0:03:37]} 24. Ncxe5 {[%emt 0:05:16]} ({Avoid the trap} 24. Nfxe5 $2 Nc4 25. Nxc4 bxc4 26. Qxc4 Qxc6 $19) 24... Rfd8 {[%emt 0:02:06][%cal Od6c4]} 25. Qa2 {[%emt 0:01:13] Inhibits Nc4.} (25. Ng4 $11) 25... Re8 {[%emt 0:03:54]} (25... c4 $17) 26. Qd5 $11 {[%emt 0:01:16]} Red8 $36 {[%emt 0:09:42][%cal Od6c4][%mdl 2048] Hoping for ...Nc4! Black has good play.} (26... Nb7 $5 27. Ng4 h5 $11) 27. Ng4 {[%emt 0:05:12]} Qe7 {[%emt 0:05:43]} (27... h5 $5 28. Ne3 Qe7 $11) 28. e5 $2 {[%emt 0:07:55] Black continues to play with concentration.} (28. Nge5 $11 Qc7) 28... Nc4 $19 {[%emt 0:00:13][%cal Bd6c4,Bc4b2,Bb2d3][%mdl 96] [#] Discovered Attack} 29. Qe4 {[%emt 0:00:03]} Nxb2 {[%emt 0:00:24]} 30. Qe3 {[%emt 0:02:15]} (30. h4 $17) 30... Nd3 {[%emt 0:01:42]} 31. Red1 {[%emt 0:00:59]} c4 {[%emt 0:00:11] Strongly threatening ...h5.} 32. Qb6 {[%emt 0:01:49]} h5 {[%emt 0:01:45]} 33. Nf6+ {[%emt 0:00:51]} Bxf6 {[%emt 0:00:11]} 34. exf6 {[%emt 0:00:11] [#]} Qd6 {[%emt 0:00:17]} 35. Ng5 {[%emt 0:02:39]} (35. Qxd6 {might work better.} Rxd6 36. Ra2) 35... Rc6 {[%emt 0:01:33]} 36. Qa7 {[%emt 0:01:35]} (36. Qe3 $142 Qxf6 37. Qf3) 36... Qxf6 {[%emt 0:00:26]} 37. h4 {[%emt 0:00:07]} Re8 {[%emt 0:00:41]} 38. Ra2 {[%emt 0:00:27]} Qe7 {[%emt 0:01:06]} 39. Qxe7 {[%emt 0:00:55]} Rxe7 {[%emt 0:00:03]} 40. Nf3 {[%emt 0:00:00]} Kf8 {[%emt 0:00:00]} 41. Rad2 {[%emt 0:02:21]} Rce6 {[%emt 0:01:33]} 42. Kf1 {[%emt 0:00:55]} f6 {[%emt 0:00:24]} 43. g3 {[%emt 0:00:40]} Kf7 {[%emt 0:00:12]} 44. Ra2 {[%emt 0:02:08]} Kg7 {[%emt 0:03:00]} 45. Rad2 {[%emt 0:00:23]} Kf8 {[%emt 0:00:36]} 46. Nd4 {[%emt 0:03:02]} Re1+ {[%emt 0:00:39]} 47. Kg2 {[%emt 0:00:02]} (47. Rxe1 {only move.} Rxe1+ 48. Kg2) 47... Rxd1 {[%emt 0:00:22]} 48. Rxd1 {[%emt 0:00:02][%mdl 4096] Endgame KRN-KRN} Kf7 {[%emt 0:00:42]} 49. Kf1 {[%emt 0:00:43]} Rc7 {[%emt 0:01:51]} 50. Nc2 {[%emt 0:00:53]} Rc6 {[%emt 0:01:19]} 51. Rd2 {[%emt 0:02:07]} Re6 {[%emt 0:00:28]} 52. Rd1 {[%emt 0:00:27]} Ke7 {[%emt 0:00:31]} 53. Nd4 {[%emt 0:00:56]} Rd6 {[%emt 0:00:27]} 54. Nc2 {[%emt 0:01:29]} Kd7 {[%emt 0:00:21]} 55. Rd2 {[%emt 0:01:19]} Kc7 {[%emt 0:02:16]} 56. Re2 {[%emt 0:00:41]} Kd8 {[%emt 0:00:46] Against Re7} 57. Nd4 $2 {[%emt 0:01:52]} (57. Rd2) 57... Kd7 {[%emt 0:11:19][%cal Od6d4] Threatens to win with ...Rxd4!} 58. Nc2 {[%emt 0:00:57]} Nc1 {[%emt 0:00:10]} 59. Re3 {[%emt 0:00:22]} Nb3 {[%emt 0:00:13] Weighted Error Value: White=0.34/Black=0.19 (very precise)} 0-1

[Event "2nd Serbia Open Masters 2022"]
[Site "Novi Sad"]
[Date "2022.06.29"]
[Round "2.42"]
[White "Chitlange Sakshi"]
[Black "Vignesh N R"]
[Result "1-0"]
[ECO "E97"]
[WhiteElo "2216"]
[BlackElo "2427"]
[Annotator "TA"]
[PlyCount "113"]
[EventDate "2022.06.28"]
[EventType "swiss"]
[EventCountry "SRB"]
[SourceTitle "playchess.com"]
[Source "ChessBase"]
[SourceQuality "1"]
[TimeControl "40/5400+30:900+30"]

{[%evp 21,113,14,24,18,50,47,49,62,62,29,67,34,54,34,75,10,11,-82,-81,-144,-165,-170,-170,-171,-151,-120,-113,-254,-214,-237,-23,-17,0,0,0,0,0,0,0,0,0,-56,-53,-53,0,-8,-8,-8,-8,-8,0,0,8,8,8,8,8,19,10,10,10,13,376,43,43,43,43,43,43,43,45,47,46,50,51,51,60,65,29971,29974,29974,29975,29974,29975,29975,29976,29976,29977,29977,29978,29978,29978,29978,29978]} 1. d4 {[%emt 0:00:04]} Nf6 {[%emt 0:03:42]} 2. c4 {[%emt 0:00:11]} g6 {[%emt 0:00:37]} 3. Nc3 {[%emt 0:00:44]} Bg7 {[%emt 0:00:07]} 4. e4 {[%emt 0:00:40]} d6 {[%emt 0:00:06]} 5. Be2 {[%emt 0:00:48]} O-O {[%emt 0:00:32]} 6. Nf3 {[%emt 0:01:04][%cal Bg1f3,Bf3e1,Be1d3][%mdl 32]} e5 {[%emt 0:00:17]} 7. O-O {[%emt 0:00:57]} Nc6 {[%emt 0:01:04]} 8. d5 {[%emt 0:02:13]} Ne7 {[%emt 0:00:07]} 9. Ne1 {[%emt 0:02:23]} Nd7 {[%emt 0:00:08]} 10. Rb1 {[%emt 0:02:03]} f5 {[%emt 0:01:46]} 11. b4 {[%emt 0:03:26]} Nf6 {[%emt 0:00:21]} 12. f3 {[%emt 0:06:35] E97: King's Indian: Classical Main Line (6...e5 7 0-0 Nc6): 8 Be3 and 8 d5 Ne7, not 9 Ne1.} f4 {[%emt 0:00:15]} 13. Nd3 {[%emt 0:00:59]} h5 {[%emt 0:06:32]} 14. c5 {[%emt 0:02:15] White is slightly better.} g5 {[%emt 0:00:22][%cal Bg6g5,Bg5g4,Bg4g3][%mdl 32] [#]} 15. b5 $146 {[%emt 0:03:23]} ({Predecessor:} 15. Nf2 Kh8 16. Bd2 Rg8 17. Rc1 Bf8 18. h3 Rg7 19. cxd6 cxd6 20. a4 {0-1 (46) Kaenel,H (2397)-Costa,G (2425) Switzerland 2006}) 15... Ng6 {[%emt 0:14:52]} 16. a4 {[%emt 0:07:24]} Rf7 {[%emt 0:03:06]} 17. a5 {[%emt 0:12:12]} Bf8 {[%emt 0:00:56]} 18. Na4 {[%emt 0:06:46]} (18. c6 $16) 18... g4 {[%emt 0:18:04]} 19. b6 {[%emt 0:04:23]} (19. c6 $11) 19... axb6 $17 {[%emt 0:13:50]} 20. axb6 {[%emt 0:00:42]} (20. cxb6 $142 gxf3 21. Bxf3) 20... g3 $1 {[%emt 0:14:00]} 21. bxc7 {[%emt 0:06:14]} (21. hxg3 fxg3 22. bxc7 Qxc7 $16) 21... Rxc7 {[%emt 0:00:22]} (21... gxh2+ 22. Kxh2 Rxc7 23. Nb6 $14) 22. hxg3 {[%emt 0:06:30]} fxg3 {[%emt 0:00:06]} 23. Bg5 {[%emt 0:01:07] Black must now prevent Nb6.} Bh6 $1 {[%emt 0:02:22]} 24. f4 {[%emt 0:12:53]} (24. Bxh6 $2 Nh7 25. Nf2 Qh4 $19) (24. cxd6 $17 {keeps fighting.} Bxg5 25. dxc7 Be3+ 26. Kh1 Qxc7 27. Qe1 $1 Rxa4 28. Qxg3) 24... Bxg5 $19 {[%emt 0:01:15]} 25. fxg5 {[%emt 0:00:02]} Nxe4 {[%emt 0:02:11]} (25... Ne8 $19 26. Qd2 (26. Bxh5 Qxg5 27. Rf3 Nf4 $19) 26... Rxa4 27. Bxh5 Rg7) 26. Rb4 $1 $11 {[%emt 0:00:46]} Nxc5 {[%emt 0:02:29]} 27. Rf6 $36 {[%emt 0:02:17][%mdl 2048] White is more active. Really sharp!} Nxa4 {[%emt 0:04:34]} 28. Rxg6+ {[%emt 0:05:44]} Rg7 {[%emt 0:00:27]} 29. Rxg7+ {[%emt 0:01:04]} Kxg7 {[%emt 0:00:02]} 30. Rxa4 {[%emt 0:01:14]} Qb6+ {[%emt 0:00:36]} 31. Kh1 {[%emt 0:01:27]} (31. Kf1 $11 Rxa4 32. Qxa4) 31... Rxa4 $15 {[%emt 0:00:14]} 32. Qxa4 {[%emt 0:00:02]} Bf5 {[%emt 0:07:53]} (32... Qb1+ $15 33. Qd1 Qxd1+ 34. Bxd1 Kg6) 33. Qb4 {[%emt 0:02:11]} Qxb4 {[%emt 0:00:04]} 34. Nxb4 {[%emt 0:00:04]} Kg6 {[%emt 0:00:02]} 35. Na2 $1 {[%emt 0:02:18]} Kxg5 {[%emt 0:00:24] Hoping for ...Kf4.} 36. Nc3 {[%emt 0:00:01]} Kf4 {[%emt 0:02:50]} 37. Nb5 $1 {[%emt 0:01:31]} Be4 {[%emt 0:01:01] aiming for ...Ke3.} 38. Bc4 {[%emt 0:01:09]} Bg6 {[%emt 0:00:34]} 39. Nxd6 {[%emt 0:00:28]} e4 {[%emt 0:00:00]} 40. Nxb7 {[%emt 0:00:00] Threatens to win with d6.} Ke5 {[%emt 0:00:00]} 41. d6 {[%emt 0:06:11]} Be8 {[%emt 0:02:48][%mdl 8192]} (41... Bf5 $11 {and Black has nothing to worry.}) 42. Kg1 $2 {[%emt 0:01:16]} (42. Nc5 $18 Kxd6 43. Nxe4+ Ke5 44. Nxg3) 42... h4 $1 $14 {[%emt 0:02:57]} 43. Kf1 {[%emt 0:00:55] Be2 is the strong threat.} ({But not} 43. Nc5 Kxd6 44. Nxe4+ Ke5 $16) 43... Bd7 $1 {[%emt 0:02:12]} 44. Nc5 {[%emt 0:02:15]} Kxd6 {[%emt 0:00:03]} 45. Nxd7 {[%emt 0:00:08]} ({Much less strong is} 45. Nxe4+ Ke5 $16) 45... Kxd7 {[%emt 0:00:02][%mdl 4096] Endgame KB-K3P} 46. Be2 {[%emt 0:00:52] Threatening mate with Bg4+.} Kd6 {[%emt 0:00:34][%cal Oh4h3]} 47. Bg4 {[%emt 0:00:05] Intending Ke2 and mate.} Ke5 {[%emt 0:00:04]} 48. Ke2 {[%emt 0:00:22] White threatens Ke3 and mate.} Kd4 {[%emt 0:03:10]} 49. Bc8 {[%emt 0:00:15]} Kd5 $2 {[%emt 0:07:16][%mdl 8192]} (49... e3 $14 50. Kf3 Kd3 51. Ba6+ Kd4 52. Kg4 Ke4 53. Kxh4 Kd4 54. Be2 Ke5 55. Kxg3 Ke4) 50. Ke3 {[%emt 0:01:30] White mates.} Ke5 {[%emt 0:00:01]} 51. Bg4 {[%emt 0:01:34]} Kd5 {[%emt 0:00:03]} 52. Bh3 {[%emt 0:01:22]} Ke5 {[%emt 0:00:02]} 53. Bc8 {[%emt 0:00:15]} Kd5 {[%emt 0:00:10] [#]} 54. Kf4 $1 {[%emt 0:00:45]} Kd4 {[%emt 0:00:05] [#]} 55. Kg4 $1 {[%emt 0:00:26]} Ke3 {[%emt 0:00:20]} 56. Kxh4 {[%emt 0:00:11]} Kf2 {[%emt 0:00:01]} 57. Kh3 {[%emt 0:00:12] What a fight!  Weighted Error Value: White=0.23 (precise) /Black=0.42} 1-0